fUST/lending_fUST_20241110
["ID","MTS","AMOUNT","RATE_DAILY","PERIOD"]
[341828586,1731244239328,-151.0,0.00029498,7]
[341828588,1731244239337,-151.0,0.00029498,7]
[341828590,1731244239346,-500.0,0.00029498,2]
[341828592,1731244239355,-151.0,0.00029499,7]
[341828594,1731244239365,-151.0,0.00029499,7]
[341828596,1731244239374,-151.0,0.00029499,7]
[341828598,1731244239383,-151.0,0.00029499,7]
[341828600,1731244239392,-151.0,0.00029499,7]
[341828602,1731244239402,-156.836248,0.00029499,7]
[341828604,1731244239411,-376.13960429,0.00029499,2]
[341828606,1731244239420,-500.0,0.00029499,2]
[341828608,1731244239430,-277.68037939,0.00029499,2]
[341828610,1731244239439,-500.0,0.00029499,2]
[341828612,1731244239448,-500.0,0.00029499,2]
[341828614,1731244239457,-414.00467528,0.00029499,2]
[341828616,1731244239466,-271.78254094,0.00029499,2]
[341828618,1731244239475,-500.0,0.00029499,2]
[341828620,1731244239484,-229.68140501,0.00029499,2]
[341828622,1731244239493,-500.0,0.00029499,2]
[341828624,1731244239503,-500.0,0.00029499,2]
[341828626,1731244239512,-524.36346093,0.00029499,2]
[341828628,1731244239523,-476.59449871,0.00029499,2]
[341828630,1731244239532,-500.0,0.00029499,2]
[341828632,1731244239541,-500.0,0.00029499,2]
[341828634,1731244239551,-195.00169293,0.00029499,2]
[341828636,1731244239560,-500.0,0.00029499,2]
[341828638,1731244239570,-500.0,0.00029499,2]
[341828640,1731244239579,-500.0,0.00029499,2]
[341828642,1731244239588,-500.0,0.00029499,2]
[341828644,1731244239598,-160.78491638,0.00029499,10]
[341828646,1731244239607,-160.74445562,0.00029499,10]
[341828648,1731244239617,-160.0,0.00029499,10]
[341828650,1731244239626,-375.24130939,0.000295,2]
[341828652,1731244239635,-313.67206991,0.000295,2]
[341828654,1731244239645,-1562366.39307882,0.000295,5]
[341828658,1731244239658,-15084.12509166,0.000295,5]
[341828660,1731244239669,-3838.35895325,0.000295,5]
[341828662,1731244239681,-851.30631796,0.000295,5]
[341828664,1731244239692,-387.01487778,0.000295,5]
[341828666,1731244239704,-17846.76418673,0.000295,5]
[341828719,1731244240185,-1708.74340499,0.00029195,10]
[341828726,1731244240245,-1314.38659501,0.00029195,10]
[341828728,1731244240255,-1987.69237981,0.000295,5]
[341828730,1731244240268,-501.98208771,0.000295,5]
[341828735,1731244240305,-11717.23078012,0.000295,5]
[341828738,1731244240316,-7463.8,0.000295,5]
[341828740,1731244240328,-1505.44,0.000295,5]
[341828742,1731244240339,-372.8238016,0.000295,5]
[341829049,1731244243398,-5264.13385789,0.000295,5]
[341829051,1731244243410,-2677.64932129,0.000295,5]
[341829053,1731244243421,-13573.49747215,0.000295,5]
[341829063,1731244243499,-29595.0855954,0.000295,5]
[341829065,1731244243511,-11623.07418617,0.000295,5]
[341829068,1731244243523,-6229.53093877,0.000295,5]
[341829347,1731244246333,-605.56811025,0.000295,5]
[341829349,1731244246345,-6303.05162035,0.000295,5]
[341830347,1731244276372,7215.68860721,0.00031719,120]
[341830351,1731244423901,1012.08,0.00020844,2]
[341830352,1731244523509,160.678022,0.00013973,2]
[341831457,1731245045027,520.83333333,0.00020844,2]
[341833707,1731245202617,160.678022,0.00013973,2]
[341833880,1731245276929,40000.0,0.00031725,30]
[341833894,1731245362749,520.83333333,0.00020844,2]
[341833927,1731245432663,-1259.73855838,0.00022,2]
[341833928,1731245432672,-194.62181936,0.00022436,2]
[341833929,1731245432682,-520.83333333,0.00023895,2]
[341833930,1731245432691,-191.93230551,0.00024558,2]
[341833931,1731245432700,-300.0,0.00024658,2]
[341833932,1731245432709,-2000.0,0.00025,4]
[341833933,1731245432719,-160.678022,0.00025156,2]
[341833934,1731245432728,-285.828219,0.00026853,2]
[341833935,1731245432738,-229.384835,0.00026931,2]
[341833936,1731245432747,-229.384835,0.00027615,2]
[341833937,1731245432757,-300.0,0.00027999,2]
[341833938,1731245432766,-300.0,0.00027999,2]
[341833939,1731245432776,-1000.0,0.00028,4]
[341833940,1731245432785,-175.31531,0.00028144,2]
[341833941,1731245432795,-229.384835,0.000283,2]
[341833942,1731245432804,-260.80787944,0.00028767,2]
[341833943,1731245432814,-402.7434423,0.0002926,30]
[341833944,1731245432823,-510.9767832,0.0002926,30]
[341833945,1731245432833,-303.7049688,0.0002926,30]
[341833946,1731245432842,-1000.0,0.000293,2]
[341833947,1731245432851,-2749.2768079,0.000293,2]
[341833948,1731245432861,-257.969628,0.00029322,2]
[341833949,1731245432870,-167.722653,0.00029322,2]
[341833950,1731245432879,-185.001251,0.00029322,2]
[341833951,1731245432889,-882.60810419,0.0002937,2]
[341833952,1731245432900,-327.06245482,0.0002937,2]
[341833953,1731245432911,-81.30600251,0.00029378,2]
[341833954,1731245432932,-1128.3645565,0.00029378,2]
[341833955,1731245432941,-1209.67055901,0.00029385,2]
[341833956,1731245432950,-156.93,0.0002939,2]
[341833957,1731245432960,-1609.85,0.0002939,10]
[341833958,1731245432970,-469.06,0.0002939,3]
[341833959,1731245432979,-2693.27,0.0002939,10]
[341833960,1731245432989,-2244.39,0.0002939,10]
[341833961,1731245432999,-140.45895494,0.0002939,10]
[341833983,1731245438627,-200.0,0.00026942,2]
[341833984,1731245438637,-1729.87104506,0.0002939,10]
[341833985,1731245438646,-1209.67055901,0.00029393,2]
[341833986,1731245438655,-610.3,0.00029399,2]
[341833987,1731245438666,-385.02931949,0.000294,2]
[341833988,1731245438674,-6713.53465965,0.000294,2]
[341834380,1731245443669,-2735.58663582,0.000294,2]
[341834382,1731245443681,-18100.55138877,0.000294,2]
[341834385,1731245443692,-64842.91322686,0.000294,2]
[341834387,1731245443703,-4272.1851154,0.000294,2]
[341834613,1731245446646,-1558.61,0.0002939,10]
[341834615,1731245446656,-97717.04083699,0.000294,2]
[341834617,1731245446666,-3000.0,0.000294,2]
[341834619,1731245446680,-1209.67055901,0.000294,2]
[341834622,1731245446690,-1360.47078422,0.000294,2]
[341834623,1731245446701,-3000.0,0.0002941,2]
[341834626,1731245446711,-3000.0,0.0002942,2]
[341834627,1731245446721,-3000.0,0.0002943,2]
[341834629,1731245446731,-3000.0,0.0002944,2]
[341834632,1731245446741,-165.6,0.00029442,6]
[341834634,1731245446751,-3000.0,0.0002945,2]
[341834635,1731245446761,-3000.0,0.0002946,2]
[341834636,1731245446771,-3000.0,0.0002947,2]
[341834637,1731245446781,-500.0,0.00029472,2]
[341834638,1731245446791,-500.0,0.00029473,5]
[341834639,1731245446801,-500.0,0.00029473,5]
[341834640,1731245446811,-500.0,0.00029473,5]
[341834641,1731245446821,-161.88158503,0.00029473,5]
[341834642,1731245446831,-514.1334172,0.00029473,5]
[341834643,1731245446841,-502.73830547,0.00029473,5]
[341834644,1731245446851,-224.40672377,0.00029473,5]
[341834645,1731245446861,-500.0,0.00029473,5]
[341834646,1731245446871,-500.0,0.00029473,2]
[341834647,1731245446880,-500.0,0.00029473,5]
[341834648,1731245446890,-500.0,0.00029473,5]
[341834649,1731245446900,-505.46584344,0.00029473,5]
[341834650,1731245446909,-2000.0,0.0002948,30]
[341834651,1731245446921,-3065.80454699,0.0002948,5]
[341834652,1731245446930,-3000.0,0.0002948,2]
[341834653,1731245446939,-3000.0,0.0002949,2]
[341834654,1731245446950,-500.0,0.00029495,2]
[341834655,1731245446960,-500.0,0.00029495,2]
[341834656,1731245446969,-500.0,0.00029495,2]
[341834658,1731245446979,-377.76297588,0.00029495,2]
[341834659,1731245446988,-500.0,0.00029495,2]
[341834660,1731245446997,-500.0,0.00029495,2]
[341834661,1731245447007,-500.0,0.00029495,2]
[341834662,1731245447017,-500.0,0.00029495,2]
[341834663,1731245447025,-500.0,0.00029495,2]
[341834665,1731245447034,-500.0,0.00029495,2]
[341834667,1731245447043,-561.85923058,0.00029495,2]
[341834669,1731245447053,-500.0,0.00029495,2]
[341834671,1731245447062,-500.0,0.00029495,2]
[341834673,1731245447070,-500.0,0.00029495,2]
[341834675,1731245447079,-500.0,0.00029495,2]
[341834677,1731245447088,-500.0,0.00029495,2]
[341834679,1731245447098,-500.0,0.00029495,2]
[341834681,1731245447107,-500.0,0.00029495,2]
[341834683,1731245447116,-500.0,0.00029495,2]
[341834685,1731245447126,-500.0,0.00029495,2]
[341834687,1731245447139,-500.0,0.00029495,2]
[341834689,1731245447147,-500.0,0.00029495,2]
[341834691,1731245447157,-382.44432736,0.00029495,2]
[341834693,1731245447166,-500.0,0.00029495,2]
[341834695,1731245447177,-500.0,0.00029495,2]
[341834697,1731245447186,-279.72793375,0.00029495,2]
[341834699,1731245447195,-500.0,0.00029495,2]
[341834701,1731245447204,-500.0,0.00029495,2]
[341834703,1731245447216,-500.0,0.00029495,2]
[341834705,1731245447226,-500.0,0.00029495,2]
[341834707,1731245447235,-500.0,0.00029495,2]
[341834709,1731245447244,-500.0,0.00029495,2]
[341834711,1731245447254,-500.0,0.00029495,2]
[341834713,1731245447263,-500.0,0.00029495,2]
[341834715,1731245447272,-500.0,0.00029495,2]
[341834717,1731245447281,-500.0,0.00029495,2]
[341834719,1731245447291,-500.0,0.00029495,2]
[341834721,1731245447300,-500.0,0.00029495,2]
[341834723,1731245447309,-500.0,0.00029495,2]
[341834725,1731245447318,-500.0,0.00029495,2]
[341834727,1731245447327,-500.0,0.00029495,2]
[341834729,1731245447336,-500.0,0.00029495,2]
[341834731,1731245447345,-500.0,0.00029495,2]
[341834733,1731245447355,-500.0,0.00029495,2]
[341834735,1731245447364,-500.0,0.00029495,2]
[341834737,1731245447373,-500.0,0.00029495,2]
[341834739,1731245447382,-500.0,0.00029495,2]
[341834741,1731245447391,-500.0,0.00029495,2]
[341834743,1731245447400,-500.0,0.00029495,2]
[341834745,1731245447409,-500.0,0.00029495,2]
[341834747,1731245447420,-500.0,0.00029495,2]
[341834749,1731245447429,-500.0,0.00029495,2]
[341834751,1731245447438,-500.0,0.00029495,2]
[341834753,1731245447447,-500.0,0.00029495,2]
[341834755,1731245447457,-278.82630035,0.00029495,2]
[341834757,1731245447467,-500.0,0.00029495,2]
[341834759,1731245447476,-500.0,0.00029495,2]
[341834761,1731245447486,-500.0,0.00029499,2]
[341834763,1731245447495,-500.0,0.00029499,2]
[341834765,1731245447504,-500.0,0.00029499,2]
[341834767,1731245447514,-289.80327269,0.00029499,2]
[341834769,1731245447524,-194.37626557,0.00029499,2]
[341834771,1731245447533,-263.297723,0.00029499,2]
[341834773,1731245447542,-183.6161491,0.00029499,2]
[341834775,1731245447551,-567.05442265,0.00029499,2]
[341834777,1731245447561,-500.0,0.00029499,2]
[341834779,1731245447570,-500.0,0.00029499,2]
[341834781,1731245447579,-190.24777866,0.00029499,2]
[341834783,1731245447589,-500.0,0.00029499,2]
[341834785,1731245447598,-500.0,0.00029499,2]
[341834787,1731245447607,-500.0,0.00029499,2]
[341834789,1731245447616,-586.50118505,0.00029499,2]
[341834791,1731245447625,-160.77698351,0.00029499,2]
[341834793,1731245447635,-132381.14405769,0.000295,5]
[341835287,1731245922595,160.678022,0.00013973,2]
[341835290,1731245986909,520.83333333,0.00020844,2]
[341835304,1731246299865,520.83333333,0.00020844,2]
[341835309,1731246414654,303.11517528,0.0002615,2]
[341835312,1731246430194,217.71815805,0.00024922,2]
[341835320,1731246616052,520.83333333,0.00020844,2]
[341835338,1731246635109,-296.86232777,0.0002615,2]
[341835340,1731246635121,-6.25284751,0.0002615,2]
[341835342,1731246635130,-520.83333333,0.00026281,2]
[341835344,1731246635140,-454.67276292,0.00026412,4]
[341835346,1731246635149,-454.67276292,0.00026673,4]
[341835348,1731246635159,-300.0,0.00026832,2]
[341835350,1731246635168,-300.0,0.00026832,2]
[341835352,1731246635177,-7105.0985362,0.00026833,2]
[341835369,1731246635323,-191.298571,0.00026878,2]
[341835371,1731246635334,-454.67276292,0.00026935,4]
[341835373,1731246635343,-166.666666,0.00027136,2]
[341835375,1731246635354,-454.75462355,0.00027196,4]
[341835377,1731246635363,-252.25758013,0.00027397,2]
[341835379,1731246635373,-176.853412,0.00027508,2]
[341835381,1731246635382,-160.678022,0.00027641,2]
[341835383,1731246635392,-520.83333333,0.00027641,2]
[341835385,1731246635402,-406.0222147,0.00027702,2]
[341835387,1731246635411,-191.298571,0.00028248,2]
[341835389,1731246635420,-154.341,0.0002858,30]
[341835391,1731246635430,-154.387,0.0002865,2]
[341835393,1731246635439,-333.75582016,0.00029014,2]
[341835396,1731246635455,-86.24417984,0.00029014,2]
[341835398,1731246635464,-521.41726834,0.00029041,120]
[341835426,1731246638764,-811.58273166,0.00029041,120]
[341835427,1731246638773,-831.28557848,0.00029072,2]
[341835428,1731246638784,-154.685,0.0002922,14]
[341835429,1731246638793,-376.25467199,0.00029227,30]
[341835430,1731246638802,-415.2548103,0.000294,2]
[341835431,1731246638811,-3000.0,0.000294,2]
[341835432,1731246638820,-9517.45782364,0.000294,2]
[341835433,1731246638832,-2456.34,0.000294,2]
[341835489,1731246643703,-2815.74001469,0.000294,2]
[341835490,1731246643715,-1938.36607915,0.000294,2]
[341835491,1731246643729,-15608.61365417,0.000294,2]
[341835492,1731246643739,-1000.0,0.000294,2]
[341835493,1731246643748,-3000.0,0.0002941,2]
[341835494,1731246643757,-3000.0,0.0002942,2]
[341835495,1731246643767,-3000.0,0.0002943,2]
[341835496,1731246643776,-151.8,0.00029433,6]
[341835497,1731246643786,-3000.0,0.0002944,2]
[341835498,1731246643796,-3000.0,0.0002945,2]
[341835499,1731246643805,-2000.0,0.0002945,30]
[341835500,1731246643815,-3000.0,0.0002946,2]
[341835501,1731246643824,-3000.0,0.0002947,2]
[341835502,1731246643833,-500.0,0.00029473,5]
[341835503,1731246643842,-500.0,0.00029473,5]
[341835504,1731246643852,-500.0,0.00029473,2]
[341835505,1731246643865,-500.0,0.00029473,5]
[341835506,1731246643874,-3000.0,0.0002948,2]
[341835507,1731246643883,-285.26,0.00029489,3]
[341835508,1731246643893,-855.82,0.00029489,3]
[341835509,1731246643902,-4265.04432401,0.0002949,22]
[341835510,1731246643911,-3000.0,0.0002949,2]
[341835511,1731246643921,-500.0,0.00029499,2]
[341835512,1731246643931,-500.0,0.00029499,2]
[341835513,1731246643940,-500.0,0.00029499,2]
[341835514,1731246643949,-500.0,0.00029499,2]
[341835515,1731246643959,-500.0,0.00029499,2]
[341835516,1731246643968,-500.0,0.00029499,2]
[341835517,1731246643977,-500.0,0.00029499,2]
[341835518,1731246643987,-500.0,0.00029499,2]
[341835519,1731246643995,-500.0,0.00029499,2]
[341835520,1731246644005,-500.0,0.00029499,2]
[341835521,1731246644014,-477.88263003,0.00029499,2]
[341835522,1731246644024,-500.0,0.00029499,2]
[341835523,1731246644034,-500.0,0.00029499,2]
[341835524,1731246644043,-188.84768018,0.00029499,2]
[341835525,1731246644053,-500.0,0.00029499,2]
[341835526,1731246644062,-500.0,0.00029499,2]
[341835527,1731246644071,-500.0,0.00029499,2]
[341835528,1731246644080,-500.0,0.00029499,2]
[341835529,1731246644090,-500.0,0.00029499,2]
[341835530,1731246644100,-174.17028201,0.00029499,2]
[341835531,1731246644112,-280.5241971,0.00029499,2]
[341835532,1731246644122,-500.0,0.00029499,2]
[341835533,1731246644131,-500.0,0.00029499,2]
[341835534,1731246644141,-500.0,0.00029499,2]
[341835535,1731246644150,-286.93825859,0.00029499,2]
[341835536,1731246644160,-600.0,0.00029499,2]
[341835537,1731246644169,-187.6206547,0.000295,2]
[341835538,1731246644179,-156.83603495,0.000295,2]
[341835539,1731246644188,-89658.15214982,0.000295,5]
[341835540,1731246644330,-869.94591213,0.000295,5]
[341835541,1731246644343,-425.31925218,0.000295,5]
[341835542,1731246644357,-2237.51252936,0.000295,5]
[341835566,1731246754002,160.678022,0.00013973,2]
[341835570,1731246971628,277.6,0.00027,120]
[341835571,1731246986178,250.0,0.00027,120]
[341835572,1731246994696,520.83333333,0.00020844,2]
[341835573,1731247150278,5872.7,0.00031724,30]
[341835574,1731247258288,46083.72318137,0.00031724,30]
[341835576,1731247307729,520.83333333,0.00020844,2]
[341835585,1731247488071,160.678022,0.00013973,2]
[341835591,1731247620207,520.83333333,0.00020844,2]
[341835623,1731247831730,-163.0,0.00022,2]
[341835624,1731247831739,-520.83333333,0.00022698,2]
[341835625,1731247831748,-303.11517528,0.00025,2]
[341835627,1731247831758,-3000.0,0.00025,2]
[341835629,1731247831768,-303.11517528,0.0002525,2]
[341835630,1731247831777,-300.0,0.00025478,2]
[341835631,1731247831786,-300.0,0.00025478,2]
[341835632,1731247831795,-4164.0,0.00025479,2]
[341835633,1731247831804,-303.11517528,0.000255,2]
[341835635,1731247831814,-303.11517528,0.0002575,2]
[341835636,1731247831823,-304.44476447,0.00026,2]
[341835638,1731247831832,-203.6412634,0.00026066,2]
[341835639,1731247831841,-206.15697331,0.00027397,2]
[341835640,1731247831850,-2405.61720686,0.00027488,2]
[341835641,1731247831859,-21633.62091458,0.00027566,2]
[341835642,1731247831871,-379.99308121,0.00027566,2]
[341835643,1731247831888,-2866.38600421,0.00027566,2]
[341835644,1731247831898,-420.0,0.00027588,2]
[341835645,1731247831909,-220.607829,0.00027681,2]
[341835646,1731247831921,-406.824272,0.0002789,30]
[341835647,1731247831930,-306.0,0.0002789,30]
[341835648,1731247831940,-236.366192,0.00027969,2]
[341835649,1731247831951,-385.15433953,0.00028026,2]
[341835650,1731247831963,-34.84566047,0.00028026,2]
[341835651,1731247831973,-1585.9145318,0.00028027,2]
[341835652,1731247831982,-3304.84602358,0.00028027,4]
[341835695,1731247837929,-859.15397642,0.00028027,4]
[341835697,1731247837939,-477.93198127,0.00028027,2]
[341835699,1731247837957,-2405.61720686,0.00028079,2]
[341835701,1731247837971,-236.366192,0.00028654,2]
[341835703,1731247837981,-176.70484394,0.0002867,2]
[341835706,1731247837994,-959.43292659,0.0002867,2]
[341835946,1731247839819,-431.01696856,0.0002867,2]
[341836026,1731247842911,-838.46246777,0.0002867,2]
[341836027,1731247842921,-2392.0,0.00028946,2]
[341836028,1731247842930,-300.0,0.00029,5]
[341836029,1731247842941,-1276.1941555,0.00029041,120]
[341836031,1731247842951,-273.14789255,0.00029227,30]
[341836032,1731247842960,-2405.61720686,0.00029261,2]
[341836034,1731247842969,-224.279347,0.00029322,2]
[341836035,1731247842978,-236.366192,0.00029339,2]
[341836037,1731247842988,-3000.0,0.000294,2]
[341836039,1731247842998,-3000.0,0.0002941,2]
[341836040,1731247843008,-168.2837605,0.0002942,2]
[341836041,1731247843019,-2831.7162395,0.0002942,2]
[341836042,1731247843028,-2732.57038936,0.0002943,2]
[341836043,1731247843040,-267.42961064,0.0002943,2]
[341836044,1731247843049,-68.7966784,0.0002944,2]
[341836045,1731247843064,-1984.50000727,0.0002944,2]
[341836046,1731247843075,-796.04074867,0.0002944,2]
[341836047,1731247843091,-150.66256566,0.0002944,2]
[341836048,1731247843101,-3000.0,0.0002945,2]
[341836050,1731247843110,-3000.0,0.0002946,2]
[341836052,1731247843119,-3000.0,0.0002947,2]
[341836053,1731247843128,-500.0,0.00029473,5]
[341836054,1731247843137,-2772.12810684,0.0002948,2]
[341836070,1731247845849,-227.87189316,0.0002948,2]
[341836071,1731247845859,-570.52,0.00029489,3]
[341836072,1731247845869,-423.05562223,0.0002949,2]
[341836073,1731247845977,-2576.94437777,0.0002949,2]
[341836075,1731247845988,-249.27858183,0.00029499,2]
[341836076,1731247846001,-165.04404981,0.00029499,2]
[341836077,1731247846011,-3429.29268109,0.00029499,2]
[341836078,1731247846021,-478.53130437,0.00029499,2]
[341836079,1731247846031,-500.0,0.00029499,2]
[341836080,1731247846042,-500.0,0.00029499,2]
[341836081,1731247846052,-88.13196473,0.00029499,2]
[341836083,1731248179252,160.678022,0.00013973,2]
[341836085,1731248249312,520.83333333,0.00020844,2]
[341836089,1731248520754,17805.0,0.00031757,120]
[341836120,1731248562549,520.83333333,0.00020844,2]
[341836129,1731248875329,520.83333333,0.00020844,2]
[341836132,1731248915687,160.678022,0.00013973,2]
[341836184,1731249032048,-520.83333333,0.00024896,2]
[341836186,1731249032058,-300.0,0.00026899,2]
[341836188,1731249032067,-300.0,0.00026899,2]
[341836189,1731249032076,-437.67897643,0.000269,2]
[341836190,1731249032087,-27738.32714864,0.000269,2]
[341836224,1731249038190,-8087.81063513,0.000269,2]
[341836226,1731249038202,-4025.14974867,0.000269,2]
[341836227,1731249038214,-1225.93254593,0.000269,2]
[341836228,1731249038240,-599.98798803,0.000269,2]
[341836229,1731249038252,-33110.44192483,0.000269,2]
[341836254,1731249040010,-7978.7,0.000269,2]
[341836255,1731249040063,-266.95937669,0.000269,2]
[341836273,1731249043410,-2412.99414383,0.000269,2]
[341836274,1731249043422,-359.012,0.000269,2]
[341836275,1731249043461,-6166.14187435,0.000269,2]
[341836276,1731249043472,-2375.92435309,0.000269,2]
[341836277,1731249043486,-46778.26182475,0.000269,2]
[341836278,1731249043495,-213.91710057,0.00027297,2]
[341836279,1731249043506,-233.07865712,0.00027397,2]
[341836281,1731249043515,-24900.0,0.00027598,2]
[341836283,1731249043524,-166.666666,0.00027938,2]
[341836284,1731249043533,-868.39475638,0.00028215,2]
[341836285,1731249043542,-392.900852,0.00028407,2]
[341836286,1731249043551,-166.666666,0.0002889,2]
[341836287,1731249043560,-420.0,0.00029084,2]
[341836288,1731249043569,-392.900852,0.00029092,2]
[341836289,1731249043579,-1202.80860343,0.000293,2]
[341836290,1731249043590,-165.08079,0.00029322,2]
[341836291,1731249043602,-811.47680096,0.00029399,2]
[341836293,1731249043611,-811.47680095,0.00029399,2]
[341836294,1731249043620,-811.47680095,0.000294,2]
[341836295,1731249043629,-811.47680095,0.000294,2]
[341836296,1731249043638,-11133.25438753,0.000294,2]
[341836297,1731249043648,-3000.0,0.000294,2]
[341836298,1731249043658,-811.47680095,0.000294,2]
[341836299,1731249043668,-1000.0,0.000294,2]
[341836300,1731249043678,-3000.0,0.0002941,2]
[341836301,1731249043687,-3000.0,0.0002942,2]
[341836302,1731249043696,-3000.0,0.0002943,2]
[341836303,1731249043705,-3000.0,0.0002944,2]
[341836304,1731249043715,-3000.0,0.0002945,2]
[341836305,1731249043724,-3000.0,0.0002946,2]
[341836306,1731249043734,-3000.0,0.0002947,2]
[341836307,1731249043743,-490.68344807,0.00029473,5]
[341836308,1731249043753,-500.0,0.00029473,5]
[341836309,1731249043763,-366.59152522,0.00029473,2]
[341836310,1731249043774,-500.0,0.00029473,2]
[341836311,1731249043784,-502.59974618,0.00029473,5]
[341836312,1731249043793,-303.8921225,0.00029473,5]
[341836313,1731249043803,-500.0,0.00029473,5]
[341836314,1731249043813,-500.0,0.00029473,5]
[341836315,1731249043824,-500.0,0.00029473,5]
[341836316,1731249043835,-500.0,0.00029473,5]
[341836317,1731249043845,-502.02165473,0.00029473,5]
[341836318,1731249043854,-500.0,0.00029473,5]
[341836319,1731249043863,-500.0,0.00029473,2]
[341836320,1731249043873,-500.0,0.00029473,5]
[341836321,1731249043883,-500.0,0.00029473,5]
[341836322,1731249043893,-622.68721089,0.00029473,5]
[341836323,1731249043902,-500.0,0.00029473,5]
[341836324,1731249043911,-3000.0,0.0002948,2]
[341836325,1731249043920,-3000.0,0.0002949,2]
[341836326,1731249043930,-153.0,0.00029491,2]
[341836327,1731249043940,-230.47455681,0.00029499,2]
[341836328,1731249043951,-184.3084061,0.00029499,2]
[341836329,1731249043962,-202.86229089,0.00029499,2]
[341836330,1731249043973,-510.55082954,0.00029499,2]
[341836331,1731249043982,-500.0,0.00029499,2]
[341836332,1731249043992,-500.0,0.00029499,2]
[341836333,1731249044002,-500.0,0.00029499,2]
[341836334,1731249044012,-164.20918112,0.00029499,2]
[341836335,1731249044023,-531.16935523,0.00029499,2]
[341836336,1731249044033,-187.64974224,0.00029499,2]
[341836337,1731249044042,-241.57447578,0.00029499,2]
[341836338,1731249044051,-500.0,0.00029499,2]
[341836339,1731249044061,-500.0,0.00029499,2]
[341836340,1731249044070,-570.52434928,0.00029499,2]
[341836341,1731249044080,-334.67532527,0.00029499,2]
[341836342,1731249044090,-500.0,0.00029499,2]
[341836343,1731249044101,-500.0,0.00029499,2]
[341836344,1731249044110,-500.0,0.00029499,2]
[341836345,1731249044120,-500.0,0.00029499,2]
[341836346,1731249044129,-188.84768018,0.00029499,2]
[341836347,1731249044140,-345.25743104,0.00029499,2]
[341836348,1731249044149,-500.0,0.00029499,2]
[341836349,1731249044158,-500.0,0.00029499,2]
[341836350,1731249044168,-500.0,0.00029499,2]
[341836351,1731249044177,-167.90403893,0.00029499,2]
[341836352,1731249044186,-160.64229731,0.00029499,2]
[341836353,1731249044195,-500.0,0.00029499,2]
[341836354,1731249044205,-160.75384229,0.00029499,2]
[341836355,1731249044215,-500.0,0.00029499,2]
[341836356,1731249044224,-500.0,0.00029499,2]
[341836357,1731249044233,-626.46272456,0.00029499,2]
[341836358,1731249044242,-500.0,0.00029499,2]
[341836359,1731249044251,-500.0,0.00029499,2]
[341836360,1731249044260,-500.0,0.00029499,2]
[341836361,1731249044270,-500.0,0.00029499,2]
[341836362,1731249044279,-500.0,0.00029499,2]
[341836363,1731249044288,-500.0,0.00029499,2]
[341836364,1731249044297,-500.0,0.00029499,2]
[341836365,1731249044307,-500.0,0.00029499,2]
[341836366,1731249044319,-500.0,0.00029499,2]
[341836367,1731249044329,-500.0,0.00029499,2]
[341836368,1731249044338,-200.0,0.00029499,2]
[341836369,1731249044350,-650.0,0.00029499,2]
[341836370,1731249044360,-528.55640714,0.00029499,2]
[341836371,1731249044369,-500.0,0.00029499,2]
[341836372,1731249044378,-500.0,0.00029499,2]
[341836373,1731249044388,-500.0,0.00029499,2]
[341836374,1731249044399,-569.01542615,0.00029499,2]
[341836375,1731249044409,-500.0,0.00029499,2]
[341836376,1731249044419,-500.0,0.00029499,2]
[341836377,1731249044428,-500.0,0.00029499,2]
[341836378,1731249044437,-500.0,0.00029499,2]